[Event "26th OIBM 2023"]
[Site "Gmund am Tegernsee"]
[Date "2023.10.29"]
[Round "2.27"]
[White "Reimann, Sebastian"]
[Black "Linseisen, Stefan"]
[Result "1/2-1/2"]
[ECO "C50"]
[WhiteElo "2342"]
[BlackElo "2128"]
[Annotator "ChessBase"]
[PlyCount "68"]
[EventDate "2023.10.04"]
[EventType "swiss"]
[EventCountry "GER"]
[SourceTitle "playchess.com"]
[Source "ChessBase"]
[SourceQuality "1"]
[TimeControl "40/5400+30:1800+30"]

1. e4 {[%emt 0:00:02]} e5 {[%emt 0:00:22]} 2. Nf3 {[%emt 0:00:08]} Nc6 {[%emt 0:00:11]} 3. Bc4 {[%emt 0:00:09]} h6 {[%emt 0:02:22]} 4. O-O {[%emt 0:04:13]} Be7 {[%emt 0:01:26]} 5. d4 {[%emt 0:05:27]} d6 {[%emt 0:00:24]} 6. dxe5 {[%emt 0:14:27]} dxe5 {[%emt 0:05:24]} 7. Qxd8+ {[%emt 0:06:13]} Bxd8 {[%emt 0:00:10]} 8. Bb5 {[%emt 0:02:15]} f6 {[%emt 0:05:16]} 9. Nbd2 {[%emt 0:05:52]} Be6 {[%emt 0:03:28]} 10. Nb3 {[%emt 0:01:16]} a6 {[%emt 0:12:24]} 11. Bxc6+ {[%emt 0:03:56]} bxc6 {[%emt 0:00:07]} 12. Na5 {[%emt 0:00:09]} Bd7 {[%emt 0:00:33]} 13. Be3 {[%emt 0:00:44]} Rb8 {[%emt 0:02:01]} 14. b3 {[%emt 0:03:07]} Be7 {[%emt 0:08:22]} 15. a3 {[%emt 0:01:07]} Bd6 {[%emt 0:08:54]} 16. Ne1 {[%emt 0:04:28]} Rb5 {[%emt 0:05:21]} 17. b4 {[%emt 0:01:33]} Be6 {[%emt 0:08:11]} 18. Nd3 {[%emt 0:06:43]} Ne7 {[%emt 0:01:25]} 19. c4 {[%emt 0:01:50]} Rxa5 {[%emt 0:00:10]} 20. bxa5 {[%emt 0:00:06]} Bxc4 {[%emt 0:00:14]} 21. Rfd1 {[%emt 0:00:05]} Bxd3 {[%emt 0:03:50]} 22. Rxd3 {[%emt 0:02:36]} Kd7 {[%emt 0:02:32]} 23. Rb1 {[%emt 0:01:22]} Ra8 {[%emt 0:00:54]} 24. Bc5 {[%emt 0:03:45]} Ke6 {[%emt 0:01:22]} 25. Rc3 {[%emt 0:03:04]} Bxc5 {[%emt 0:04:09]} 26. Rxc5 {[%emt 0:00:34]} Rd8 {[%emt 0:00:03]} 27. Rc4 {[%emt 0:02:41]} Rd3 {[%emt 0:04:18]} 28. a4 {[%emt 0:00:33]} Kd6 {[%emt 0:00:50]} 29. Kf1 {[%emt 0:00:33]} Rd4 {[%emt 0:00:30]} 30. Rxd4+ {[%emt 0:03:40]} exd4 {[%emt 0:00:02]} 31. Ke2 {[%emt 0:00:09]} c5 {[%emt 0:00:16]} 32. Kd3 {[%emt 0:00:14]} Nc6 {[%emt 0:00:12]} 33. f4 {[%emt 0:00:14]} Nxa5 {[%emt 0:00:35]} 34. Rb8 {[%emt 0:00:57]} c4+ {[%emt 0:21:12]} 1/2-1/2

[Event "26th OIBM 2023"]
[Site "Gmund am Tegernsee"]
[Date "2023.10.29"]
[Round "2.28"]
[White "Gschwendtner, Klaus"]
[Black "Lammers, Markus"]
[Result "1/2-1/2"]
[ECO "C00"]
[WhiteElo "2119"]
[BlackElo "2336"]
[Annotator "ChessBase"]
[PlyCount "71"]
[EventDate "2023.10.04"]
[EventType "swiss"]
[EventCountry "GER"]
[SourceTitle "playchess.com"]
[Source "ChessBase"]
[SourceQuality "1"]
[TimeControl "40/5400+30:1800+30"]

1. e4 {[%emt 0:00:03]} c5 {[%emt 0:00:06]} 2. Nf3 {[%emt 0:00:20]} e6 {[%emt 0:00:05]} 3. d3 {[%emt 0:00:22]} Nf6 {[%emt 0:00:23]} 4. g3 {[%emt 0:00:47]} d5 {[%emt 0:00:07]} 5. Qe2 {[%emt 0:00:53]} Be7 {[%emt 0:00:06]} 6. Bg2 {[%emt 0:01:08]} O-O {[%emt 0:00:10]} 7. O-O {[%emt 0:00:35]} Nc6 {[%emt 0:00:26]} 8. e5 {[%emt 0:00:32]} Nd7 {[%emt 0:00:05]} 9. c4 {[%emt 0:00:28]} b6 {[%emt 0:07:50]} 10. h4 {[%emt 0:09:33]} Re8 {[%emt 0:12:20]} 11. Nc3 {[%emt 0:04:22]} Bb7 {[%emt 0:09:48]} 12. Bf4 {[%emt 0:02:55]} Nf8 {[%emt 0:04:15]} 13. h5 {[%emt 0:05:26]} Qd7 {[%emt 0:05:10]} 14. Bh3 {[%emt 0:14:10]} dxc4 {[%emt 0:05:30]} 15. dxc4 {[%emt 0:00:02]} Nd4 {[%emt 0:00:09]} 16. Nxd4 {[%emt 0:00:46]} cxd4 {[%emt 0:00:01]} 17. Ne4 {[%emt 0:01:53]} d3 {[%emt 0:04:29]} 18. Qe3 {[%emt 0:22:02]} Rad8 {[%emt 0:01:22]} 19. Bg2 {[%emt 0:01:26]} Qc8 {[%emt 0:02:51]} 20. b3 {[%emt 0:04:05]} Nd7 {[%emt 0:01:21]} 21. h6 {[%emt 0:03:45]} g6 {[%emt 0:01:25]} 22. Qxd3 {[%emt 0:08:04]} Nc5 {[%emt 0:01:55]} 23. Qe2 {[%emt 0:00:56]} Nxe4 {[%emt 0:02:56]} 24. Bxe4 {[%emt 0:00:03]} Rd4 {[%emt 0:00:28]} 25. Bxb7 {[%emt 0:01:03]} Qxb7 {[%emt 0:00:02]} 26. Rad1 {[%emt 0:01:18]} Red8 {[%emt 0:00:26]} 27. Rxd4 {[%emt 0:00:18]} Rxd4 {[%emt 0:00:02]} 28. Rd1 {[%emt 0:00:20]} Rxd1+ {[%emt 0:02:57]} 29. Qxd1 {[%emt 0:00:01]} Kf8 {[%emt 0:00:10]} 30. f3 {[%emt 0:03:04]} Ke8 {[%emt 0:00:39]} 31. Kg2 {[%emt 0:00:21]} g5 {[%emt 0:11:25]} 32. Be3 {[%emt 0:01:14]} g4 {[%emt 0:00:07]} 33. Kf2 {[%emt 0:00:53]} Qxf3+ {[%emt 0:00:13]} 34. Qxf3 {[%emt 0:14:22]} gxf3 {[%emt 0:28:11]} 35. Kxf3 {[%emt 0:00:00]} Kd7 {[%emt 0:00:00]} 36. Ke4 {[%emt 0:00:00]} 1/2-1/2

[Event "26th OIBM 2023"]
[Site "Gmund am Tegernsee"]
[Date "2023.10.29"]
[Round "2.29"]
[White "Dolzhykova, Kateryna"]
[Black "Kotyk, Michael"]
[Result "1-0"]
[ECO "A07"]
[WhiteElo "2336"]
[BlackElo "2127"]
[Annotator "ChessBase"]
[PlyCount "107"]
[EventDate "2023.10.04"]
[EventType "swiss"]
[EventCountry "GER"]
[SourceTitle "playchess.com"]
[Source "ChessBase"]
[SourceQuality "1"]
[TimeControl "40/5400+30:1800+30"]

1. Nf3 {[%emt 0:00:09]} d5 {[%emt 0:00:57]} 2. d3 {[%emt 0:00:45]} Nc6 {[%emt 0:01:10]} 3. g3 {[%emt 0:00:51]} e5 {[%emt 0:00:14]} 4. Bg2 {[%emt 0:00:38]} f6 {[%emt 0:01:37]} 5. Nbd2 {[%emt 0:03:40]} Be6 {[%emt 0:00:11]} 6. c4 {[%emt 0:01:28]} Nge7 {[%emt 0:06:59]} 7. cxd5 {[%emt 0:00:09]} Nxd5 {[%emt 0:00:17]} 8. a3 {[%emt 0:00:24]} Qd7 {[%emt 0:05:20]} 9. h4 {[%emt 0:00:14]} Bc5 {[%emt 0:03:59]} 10. b4 {[%emt 0:03:14]} Bb6 {[%emt 0:01:56]} 11. Nc4 {[%emt 0:01:28]} e4 {[%emt 0:10:26]} 12. dxe4 {[%emt 0:10:12]} Ndxb4 {[%emt 0:00:33]} 13. Qxd7+ {[%emt 0:01:21]} Kxd7 {[%emt 0:00:20]} 14. Nxb6+ {[%emt 0:06:28]} axb6 {[%emt 0:01:37]} 15. Kd2 {[%emt 0:06:16]} Rhd8 {[%emt 0:04:59]} 16. Bb2 {[%emt 0:02:57]} Ke7+ {[%emt 0:01:56]} 17. Kc3 {[%emt 0:06:11]} Na6 {[%emt 0:03:13]} 18. a4 {[%emt 0:00:09]} Nc5 {[%emt 0:03:13]} 19. Ba3 {[%emt 0:00:06]} Kf7 {[%emt 0:00:04]} 20. Bxc5 {[%emt 0:00:06]} bxc5 {[%emt 0:00:04]} 21. e5 {[%emt 0:00:24]} Nd4 {[%emt 0:06:06]} 22. Nxd4 {[%emt 0:02:20]} cxd4+ {[%emt 0:06:25]} 23. Kd2 {[%emt 0:00:38]} fxe5 {[%emt 0:02:10]} 24. Bxb7 {[%emt 0:01:08]} Ra7 {[%emt 0:00:38]} 25. Bc6 {[%emt 0:02:02]} Bd5 {[%emt 0:03:26]} 26. Rhc1 {[%emt 0:00:42]} Ke6 {[%emt 0:00:40]} 27. f3 {[%emt 0:03:48]} Rd6 {[%emt 0:04:04]} 28. Bb5 {[%emt 0:02:07]} Rb6 {[%emt 0:01:24]} 29. e4 {[%emt 0:05:44]} Ba8 {[%emt 0:07:12]} 30. Bc4+ {[%emt 0:08:13]} Kd6 {[%emt 0:00:11]} 31. a5 {[%emt 0:00:06]} Rb4 {[%emt 0:04:13]} 32. a6 {[%emt 0:02:55]} c5 {[%emt 0:09:47]} 33. Kd3 {[%emt 0:02:30]} Bc6 {[%emt 0:01:44]} 34. Rcb1 {[%emt 0:01:51]} Rxb1 {[%emt 0:02:25]} 35. Rxb1 {[%emt 0:00:01]} Kc7 {[%emt 0:00:35]} 36. f4 {[%emt 0:01:45]} exf4 {[%emt 0:01:42]} 37. gxf4 {[%emt 0:00:05]} Ra8 {[%emt 0:00:02]} 38. Rg1 {[%emt 0:07:04]} g6 {[%emt 0:00:12]} 39. Rg5 {[%emt 0:01:19]} Kb6 {[%emt 0:02:19]} 40. Re5 {[%emt 0:00:08]} Bb5 {[%emt 0:01:18]} 41. Re6+ {[%emt 0:35:27]} Ka5 {[%emt 0:30:06]} 42. f5 {[%emt 0:04:32]} gxf5 {[%emt 0:00:00]} 43. exf5 {[%emt 0:00:00]} Bd7 {[%emt 0:00:00]} 44. Re5 {[%emt 0:00:00]} Kb4 {[%emt 0:00:00]} 45. f6 {[%emt 0:00:00]} Bh3 {[%emt 0:00:00]} 46. f7 {[%emt 0:00:00]} Bf1+ {[%emt 0:00:00]} 47. Kd2 {[%emt 0:00:00]} Bxc4 {[%emt 0:00:00]} 48. Re8 {[%emt 0:00:00]} Rxa6 {[%emt 0:00:00]} 49. Rb8+ {[%emt 0:00:00]} Bb5 {[%emt 0:00:00]} 50. f8=Q {[%emt 0:00:00]} Ra2+ {[%emt 0:00:00]} 51. Kc1 {[%emt 0:00:00]} d3 {[%emt 0:00:28]} 52. Qf4+ {[%emt 0:00:00]} c4 {[%emt 0:00:24]} 53. Qd6+ {[%emt 0:00:00]} Kc3 {[%emt 0:00:30]} 54. Qe5+ {[%emt 0:00:00]} 1-0

[Event "26th OIBM 2023"]
[Site "Gmund am Tegernsee"]
[Date "2023.10.29"]
[Round "2.30"]
[White "Nguyen, Alex Dac-Vuong"]
[Black "Mohylnyi, Stepan"]
[Result "1-0"]
[ECO "C18"]
[WhiteElo "2333"]
[BlackElo "2120"]
[Annotator "ChessBase"]
[PlyCount "73"]
[EventDate "2023.10.04"]
[EventType "swiss"]
[EventCountry "GER"]
[SourceTitle "playchess.com"]
[Source "ChessBase"]
[SourceQuality "1"]
[TimeControl "40/5400+30:1800+30"]

1. e4 {[%emt 0:00:05]} e6 {[%emt 0:00:13]} 2. d4 {[%emt 0:00:07]} d5 {[%emt 0:00:06]} 3. Nc3 {[%emt 0:00:05]} Bb4 {[%emt 0:00:07]} 4. e5 {[%emt 0:00:06]} c5 {[%emt 0:00:05]} 5. a3 {[%emt 0:00:04]} Bxc3+ {[%emt 0:00:07]} 6. bxc3 {[%emt 0:00:06]} Ne7 {[%emt 0:00:05]} 7. Qg4 {[%emt 0:00:06]} Qc7 {[%emt 0:00:05]} 8. Qxg7 {[%emt 0:00:07]} Rg8 {[%emt 0:00:03]} 9. Qxh7 {[%emt 0:00:06]} cxd4 {[%emt 0:00:04]} 10. Ne2 {[%emt 0:00:43]} Nbc6 {[%emt 0:00:07]} 11. f4 {[%emt 0:00:12]} dxc3 {[%emt 0:00:05]} 12. Nxc3 {[%emt 0:03:09]} Nxe5 {[%emt 0:13:38]} 13. Nb5 {[%emt 0:27:40]} Qb8 {[%emt 0:01:20]} 14. Bb2 {[%emt 0:06:35]} N5c6 {[%emt 0:04:06]} 15. g3 {[%emt 0:02:35]} a6 {[%emt 0:00:25]} 16. Nd4 {[%emt 0:00:28]} Qc7 {[%emt 0:03:45]} 17. O-O-O {[%emt 0:16:47]} Bd7 {[%emt 0:18:22]} 18. Be2 {[%emt 0:04:17]} Na5 {[%emt 0:24:48]} 19. Rhe1 {[%emt 0:06:00]} Rf8 {[%emt 0:15:56]} 20. Bh5 {[%emt 0:03:49]} Qd6 {[%emt 0:00:19]} 21. f5 {[%emt 0:02:48]} O-O-O {[%emt 0:01:03]} 22. Bxf7 {[%emt 0:01:18]} exf5 {[%emt 0:04:56]} 23. Ne6 {[%emt 0:00:38]} Nc4 {[%emt 0:02:30]} 24. Nxf8 {[%emt 0:00:41]} Nxb2 {[%emt 0:00:23]} 25. Kxb2 {[%emt 0:01:09]} Qf6+ {[%emt 0:01:05]} 26. Kb1 {[%emt 0:01:51]} Rxf8 {[%emt 0:00:56]} 27. Bxd5 {[%emt 0:01:35]} Nxd5 {[%emt 0:02:56]} 28. Rxd5 {[%emt 0:00:06]} Qb6+ {[%emt 0:00:19]} 29. Kc1 {[%emt 0:01:28]} Bc6 {[%emt 0:01:05]} 30. Rxf5 {[%emt 0:02:36]} Rd8 {[%emt 0:00:15]} 31. Qg7 {[%emt 0:01:28]} Bb5 {[%emt 0:00:41]} 32. Rf8 {[%emt 0:01:02]} Kb8 {[%emt 0:01:37]} 33. Rxd8+ {[%emt 0:01:01]} Qxd8 {[%emt 0:00:07]} 34. Qe5+ {[%emt 0:00:12]} Ka8 {[%emt 0:00:20]} 35. Rd1 {[%emt 0:00:26]} Qa5 {[%emt 0:00:38]} 36. Qh8+ {[%emt 0:00:18]} Ka7 {[%emt 0:00:03]} 37. Qd4+ {[%emt 0:00:06]} 1-0

[Event "26th OIBM 2023"]
[Site "Gmund am Tegernsee"]
[Date "2023.10.29"]
[Round "2.31"]
[White "Tscharotschkin, Michael"]
[Black "Chassard, Cedric"]
[Result "0-1"]
[ECO "D02"]
[WhiteElo "2115"]
[BlackElo "2326"]
[Annotator "ChessBase"]
[PlyCount "52"]
[EventDate "2023.10.04"]
[EventType "swiss"]
[EventCountry "GER"]
[SourceTitle "playchess.com"]
[Source "ChessBase"]
[SourceQuality "1"]
[TimeControl "40/5400+30:1800+30"]

1. d4 {[%emt 0:00:03]} Nf6 {[%emt 0:00:07]} 2. Nf3 {[%emt 0:00:17]} d5 {[%emt 0:00:09]} 3. Bf4 {[%emt 0:00:07]} c5 {[%emt 0:01:47]} 4. e3 {[%emt 0:00:05]} Nc6 {[%emt 0:00:08]} 5. c3 {[%emt 0:00:19]} Qb6 {[%emt 0:00:32]} 6. Qb3 {[%emt 0:03:09]} c4 {[%emt 0:00:55]} 7. Qc2 {[%emt 0:00:06]} Bf5 {[%emt 0:00:06]} 8. Qc1 {[%emt 0:00:13]} e6 {[%emt 0:01:14]} 9. Nbd2 {[%emt 0:00:25]} Be7 {[%emt 0:01:27]} 10. Be2 {[%emt 0:01:33]} O-O {[%emt 0:08:57]} 11. O-O {[%emt 0:01:28]} Qa5 {[%emt 0:02:08]} 12. Nh4 {[%emt 0:09:26]} b5 {[%emt 0:04:59]} 13. Nxf5 {[%emt 0:00:34]} exf5 {[%emt 0:00:06]} 14. a3 {[%emt 0:01:38]} Qb6 {[%emt 0:01:03]} 15. Qc2 {[%emt 0:01:05]} g6 {[%emt 0:01:23]} 16. f3 {[%emt 0:04:44]} Rfe8 {[%emt 0:10:18]} 17. g4 {[%emt 0:05:02]} Qd8 {[%emt 0:11:13]} 18. gxf5 {[%emt 0:01:58]} Nh5 {[%emt 0:02:12]} 19. fxg6 {[%emt 0:06:44]} hxg6 {[%emt 0:00:26]} 20. Rf2 {[%emt 0:02:57]} Bg5 {[%emt 0:12:17]} 21. Nf1 {[%emt 0:15:30]} Bxf4 {[%emt 0:03:45]} 22. exf4 {[%emt 0:00:16]} Qh4 {[%emt 0:05:07]} 23. Ng3 {[%emt 0:16:43]} Nxf4 {[%emt 0:07:47]} 24. Bf1 {[%emt 0:01:31]} Re6 {[%emt 0:02:17]} 25. Ne2 {[%emt 0:01:01]} Nd3 {[%emt 0:01:40]} 26. Rg2 {[%emt 0:00:34]} Ne1 {[%emt 0:00:50]} 0-1

[Event "26th OIBM 2023"]
[Site "Gmund am Tegernsee"]
[Date "2023.10.29"]
[Round "2.32"]
[White "Kulon, Klaudia"]
[Black "Schaffarczyk, Andre"]
[Result "1-0"]
[ECO "D00"]
[WhiteElo "2319"]
[BlackElo "2118"]
[Annotator "ChessBase"]
[PlyCount "81"]
[EventDate "2023.10.04"]
[EventType "swiss"]
[EventCountry "GER"]
[SourceTitle "playchess.com"]
[Source "ChessBase"]
[SourceQuality "1"]
[TimeControl "40/5400+30:1800+30"]

1. d4 {[%emt 0:00:04]} d5 {[%emt 0:00:15]} 2. Bg5 {[%emt 0:00:05]} h6 {[%emt 0:00:29]} 3. Bh4 {[%emt 0:00:05]} c6 {[%emt 0:00:32]} 4. e3 {[%emt 0:00:38]} Qb6 {[%emt 0:00:54]} 5. Nf3 {[%emt 0:00:12]} Bf5 {[%emt 0:09:42]} 6. Nbd2 {[%emt 0:02:30]} e6 {[%emt 0:03:10]} 7. Be2 {[%emt 0:04:16]} Nd7 {[%emt 0:00:57]} 8. O-O {[%emt 0:03:57]} Ngf6 {[%emt 0:00:33]} 9. b3 {[%emt 0:01:56]} Ba3 {[%emt 0:11:46]} 10. Ne1 {[%emt 0:06:24]} O-O {[%emt 0:21:12]} 11. Bd3 {[%emt 0:01:39]} Bxd3 {[%emt 0:01:02]} 12. Nxd3 {[%emt 0:00:05]} a5 {[%emt 0:04:57]} 13. c4 {[%emt 0:02:17]} Qa6 {[%emt 0:05:49]} 14. Qc2 {[%emt 0:02:25]} Bd6 {[%emt 0:07:36]} 15. c5 {[%emt 0:06:14]} Be7 {[%emt 0:09:20]} 16. Ne5 {[%emt 0:11:40]} Rfe8 {[%emt 0:02:41]} 17. Bxf6 {[%emt 0:02:35]} Nxf6 {[%emt 0:00:31]} 18. f4 {[%emt 0:03:07]} Qe2 {[%emt 0:08:33]} 19. Rae1 {[%emt 0:00:06]} Qh5 {[%emt 0:00:20]} 20. h3 {[%emt 0:00:52]} Qf5 {[%emt 0:01:36]} 21. Qd1 {[%emt 0:01:10]} Ne4 {[%emt 0:03:23]} 22. g4 {[%emt 0:03:56]} Qh7 {[%emt 0:00:35]} 23. Nxe4 {[%emt 0:02:36]} Qxe4 {[%emt 0:00:56]} 24. Qd2 {[%emt 0:08:41]} f6 {[%emt 0:01:33]} 25. Nd3 {[%emt 0:00:57]} g5 {[%emt 0:01:32]} 26. Nf2 {[%emt 0:05:16]} Qg6 {[%emt 0:01:25]} 27. e4 {[%emt 0:01:26]} Bd8 {[%emt 0:00:39]} 28. f5 {[%emt 0:02:18]} exf5 {[%emt 0:01:43]} 29. gxf5 {[%emt 0:00:03]} Qh5 {[%emt 0:00:43]} 30. exd5 {[%emt 0:02:41]} cxd5 {[%emt 0:00:29]} 31. Rxe8+ {[%emt 0:00:52]} Qxe8 {[%emt 0:00:05]} 32. Re1 {[%emt 0:00:03]} Qf7 {[%emt 0:00:58]} 33. Re6 {[%emt 0:01:10]} h5 {[%emt 0:00:26]} 34. Qe2 {[%emt 0:00:34]} Kf8 {[%emt 0:00:34]} 35. Qf3 {[%emt 0:00:56]} Bc7 {[%emt 0:00:29]} 36. Qxd5 {[%emt 0:00:35]} Rd8 {[%emt 0:00:30]} 37. Qc4 {[%emt 0:00:14]} Qd7 {[%emt 0:00:32]} 38. Rxf6+ {[%emt 0:00:31]} Kg7 {[%emt 0:00:27]} 39. Rg6+ {[%emt 0:00:06]} Kh8 {[%emt 0:00:27]} 40. Qe2 {[%emt 0:00:55]} Qh7 {[%emt 0:00:37]} 41. Qe6 {[%emt 0:30:23]} 1-0

[Event "26th OIBM 2023"]
[Site "Gmund am Tegernsee"]
[Date "2023.10.29"]
[Round "2.33"]
[White "Kraemer, Stefan"]
[Black "Lavrencic, Matic"]
[Result "0-1"]
[ECO "B92"]
[WhiteElo "2105"]
[BlackElo "2319"]
[Annotator "ChessBase"]
[PlyCount "184"]
[EventDate "2023.10.04"]
[EventType "swiss"]
[EventCountry "GER"]
[SourceTitle "playchess.com"]
[Source "ChessBase"]
[SourceQuality "1"]
[TimeControl "40/5400+30:1800+30"]

1. e4 {[%emt 0:00:03]} c5 {[%emt 0:00:06]} 2. Nf3 {[%emt 0:00:17]} d6 {[%emt 0:00:10]} 3. d4 {[%emt 0:00:12]} cxd4 {[%emt 0:00:05]} 4. Nxd4 {[%emt 0:00:06]} Nf6 {[%emt 0:00:07]} 5. Nc3 {[%emt 0:00:06]} a6 {[%emt 0:00:04]} 6. Be2 {[%emt 0:04:02]} e5 {[%emt 0:00:32]} 7. Nb3 {[%emt 0:00:17]} Be7 {[%emt 0:00:07]} 8. Be3 {[%emt 0:00:17]} Be6 {[%emt 0:00:12]} 9. Nd5 {[%emt 0:00:35]} Nbd7 {[%emt 0:01:18]} 10. Qd3 {[%emt 0:01:16]} Bxd5 {[%emt 0:01:42]} 11. exd5 {[%emt 0:00:07]} O-O {[%emt 0:00:08]} 12. O-O {[%emt 0:00:09]} Rc8 {[%emt 0:06:07]} 13. c4 {[%emt 0:00:59]} a5 {[%emt 0:00:40]} 14. Rae1 {[%emt 0:04:38]} a4 {[%emt 0:03:28]} 15. Nd2 {[%emt 0:01:36]} Nc5 {[%emt 0:03:27]} 16. Qb1 {[%emt 0:06:57]} Nfd7 {[%emt 0:13:24]} 17. b4 {[%emt 0:16:14]} axb3 {[%emt 0:00:25]} 18. axb3 {[%emt 0:00:12]} f5 {[%emt 0:00:31]} 19. f4 {[%emt 0:00:33]} exf4 {[%emt 0:07:05]} 20. Bxf4 {[%emt 0:00:33]} Bg5 {[%emt 0:08:08]} 21. Kh1 {[%emt 0:06:51]} Ne5 {[%emt 0:07:38]} 22. b4 {[%emt 0:03:42]} Ncd7 {[%emt 0:01:43]} 23. Nb3 {[%emt 0:13:22]} Bxf4 {[%emt 0:07:30]} 24. Rxf4 {[%emt 0:00:28]} Qb6 {[%emt 0:16:22]} 25. Ref1 {[%emt 0:11:25]} g6 {[%emt 0:09:20]} 26. Qe1 {[%emt 0:08:08]} Rce8 {[%emt 0:01:56]} 27. Qc3 {[%emt 0:03:44]} Nf6 {[%emt 0:01:56]} 28. c5 {[%emt 0:04:50]} Qd8 {[%emt 0:00:33]} 29. Rd4 {[%emt 0:05:50]} Ne4 {[%emt 0:01:00]} 30. Qh3 {[%emt 0:01:46]} Ng4 {[%emt 0:02:07]} 31. Kg1 {[%emt 0:02:10]} Ng5 {[%emt 0:03:13]} 32. Qd3 {[%emt 0:00:48]} Re3 {[%emt 0:00:58]} 33. Qc2 {[%emt 0:00:43]} Nf6 {[%emt 0:00:33]} 34. cxd6 {[%emt 0:02:42]} Qxd6 {[%emt 0:00:32]} 35. Nc5 {[%emt 0:01:03]} Qe5 {[%emt 0:00:47]} 36. Rd2 {[%emt 0:00:11]} Nge4 {[%emt 0:01:56]} 37. Nxe4 {[%emt 0:01:16]} Nxe4 {[%emt 0:00:02]} 38. Rd3 {[%emt 0:00:10]} Nd6 {[%emt 0:01:52]} 39. Bf3 {[%emt 0:01:04]} Rc8 {[%emt 0:01:35]} 40. Qd2 {[%emt 0:00:01]} Rxd3 {[%emt 0:00:30]} 41. Qxd3 {[%emt 0:30:01]} Rc3 {[%emt 0:30:26]} 42. Qd2 {[%emt 0:00:00]} Re3 {[%emt 0:00:00]} 43. Qc1 {[%emt 0:00:00]} Qd4 {[%emt 0:00:00]} 44. Qc5 {[%emt 0:00:00]} Qe5 {[%emt 0:00:00]} 45. h3 {[%emt 0:00:00]} Rc3 {[%emt 0:00:00]} 46. Qa5 {[%emt 0:00:00]} Rc8 {[%emt 0:00:00]} 47. Qb6 {[%emt 0:00:00]} Kg7 {[%emt 0:00:00]} 48. Rd1 {[%emt 0:00:00]} h5 {[%emt 0:00:00]} 49. Qf2 {[%emt 0:00:00]} Re8 {[%emt 0:00:00]} 50. Rd2 {[%emt 0:00:00]} Qc3 {[%emt 0:00:00]} 51. Re2 {[%emt 0:01:07]} Qxb4 {[%emt 0:02:10]} 52. Rxe8 {[%emt 0:01:33]} Nxe8 {[%emt 0:00:01]} 53. Qe3 {[%emt 0:00:16]} Qf8 {[%emt 0:00:43]} 54. Qe5+ {[%emt 0:02:08]} Kh7 {[%emt 0:01:16]} 55. Qe6 {[%emt 0:00:55]} Nd6 {[%emt 0:00:17]} 56. Be2 {[%emt 0:00:33]} h4 {[%emt 0:01:16]} 57. Bd3 {[%emt 0:00:11]} Qd8 {[%emt 0:00:16]} 58. Kh1 {[%emt 0:00:46]} Kg7 {[%emt 0:00:07]} 59. Bc2 {[%emt 0:01:37]} Qf6 {[%emt 0:00:11]} 60. Qd7+ {[%emt 0:00:10]} Kh6 {[%emt 0:00:04]} 61. Qa4 {[%emt 0:00:15]} b5 {[%emt 0:00:57]} 62. Qf4+ {[%emt 0:00:13]} Kg7 {[%emt 0:00:43]} 63. Qb4 {[%emt 0:00:18]} Qa1+ {[%emt 0:00:18]} 64. Bb1 {[%emt 0:00:41]} Qe5 {[%emt 0:02:31]} 65. Qc5 {[%emt 0:02:12]} Qe1+ {[%emt 0:01:00]} 66. Kh2 {[%emt 0:00:24]} Qe5+ {[%emt 0:00:23]} 67. Kh1 {[%emt 0:00:03]} Qe1+ {[%emt 0:00:14]} 68. Kh2 {[%emt 0:00:01]} Qg3+ {[%emt 0:00:07]} 69. Kh1 {[%emt 0:00:04]} Kf6 {[%emt 0:01:36]} 70. Qd4+ {[%emt 0:01:41]} Kg5 {[%emt 0:00:16]} 71. Bd3 {[%emt 0:00:32]} Qe1+ {[%emt 0:00:34]} 72. Kh2 {[%emt 0:00:02]} b4 {[%emt 0:00:21]} 73. Qc5 {[%emt 0:00:46]} Qe5+ {[%emt 0:00:19]} 74. Kh1 {[%emt 0:00:04]} b3 {[%emt 0:00:12]} 75. Qc1+ {[%emt 0:00:27]} Kf6 {[%emt 0:00:12]} 76. Qh6 {[%emt 0:00:53]} Qe1+ {[%emt 0:00:07]} 77. Kh2 {[%emt 0:00:10]} Qg3+ {[%emt 0:00:46]} 78. Kh1 {[%emt 0:00:01]} Qxd3 {[%emt 0:00:15]} 79. Qh8+ {[%emt 0:00:07]} Kf7 {[%emt 0:00:46]} 80. Qh7+ {[%emt 0:00:14]} Kf6 {[%emt 0:01:23]} 81. Qh8+ {[%emt 0:00:46]} Kg5 {[%emt 0:00:08]} 82. Qd8+ {[%emt 0:00:21]} Kf4 {[%emt 0:00:08]} 83. Qxd6+ {[%emt 0:00:06]} Ke3 {[%emt 0:00:02]} 84. Qb6+ {[%emt 0:00:29]} Ke2 {[%emt 0:01:10]} 85. d6 {[%emt 0:00:22]} f4 {[%emt 0:00:34]} 86. d7 {[%emt 0:02:31]} Qxd7 {[%emt 0:00:11]} 87. Qxb3 {[%emt 0:00:06]} Qd1+ {[%emt 0:00:06]} 88. Qxd1+ {[%emt 0:00:14]} Kxd1 {[%emt 0:00:01]} 89. Kg1 {[%emt 0:01:41]} Ke2 {[%emt 0:00:01]} 90. Kh2 {[%emt 0:00:08]} Kf2 {[%emt 0:00:04]} 91. Kh1 {[%emt 0:00:12]} g5 {[%emt 0:00:07]} 92. Kh2 {[%emt 0:00:04]} f3 {[%emt 0:00:08]} 0-1

[Event "26th OIBM 2023"]
[Site "Gmund am Tegernsee"]
[Date "2023.10.29"]
[Round "2.34"]
[White "Gohla, Ulf"]
[Black "Forchert, Martin"]
[Result "0-1"]
[ECO "D20"]
[WhiteElo "2102"]
[BlackElo "2317"]
[Annotator "ChessBase"]
[PlyCount "80"]
[EventDate "2023.10.04"]
[EventType "swiss"]
[EventCountry "GER"]
[SourceTitle "playchess.com"]
[Source "ChessBase"]
[SourceQuality "1"]
[TimeControl "40/5400+30:1800+30"]

1. d4 {[%emt 0:00:02]} d5 {[%emt 0:00:16]} 2. c4 {[%emt 0:00:03]} dxc4 {[%emt 0:00:15]} 3. e3 {[%emt 0:01:12]} e5 {[%emt 0:00:11]} 4. Nf3 {[%emt 0:04:14]} exd4 {[%emt 0:00:22]} 5. Qxd4 {[%emt 0:01:44]} Qxd4 {[%emt 0:02:11]} 6. Nxd4 {[%emt 0:00:03]} a6 {[%emt 0:00:16]} 7. Bxc4 {[%emt 0:01:11]} Nf6 {[%emt 0:00:46]} 8. Nc3 {[%emt 0:03:37]} c5 {[%emt 0:05:52]} 9. Nf3 {[%emt 0:01:59]} Nbd7 {[%emt 0:10:50]} 10. a4 {[%emt 0:03:51]} b6 {[%emt 0:00:31]} 11. O-O {[%emt 0:06:44]} Bb7 {[%emt 0:00:38]} 12. e4 {[%emt 0:04:02]} Rd8 {[%emt 0:13:06]} 13. Re1 {[%emt 0:08:32]} Be7 {[%emt 0:12:04]} 14. e5 {[%emt 0:14:13]} Ng4 {[%emt 0:00:06]} 15. Bd5 {[%emt 0:07:55]} Bc8 {[%emt 0:07:45]} 16. Bg5 {[%emt 0:05:16]} Nb8 {[%emt 0:25:23]} 17. Rad1 {[%emt 0:12:23]} Be6 {[%emt 0:00:39]} 18. Bxe6 {[%emt 0:01:56]} fxe6 {[%emt 0:00:06]} 19. Rxd8+ {[%emt 0:00:29]} Bxd8 {[%emt 0:02:57]} 20. h3 {[%emt 0:01:42]} Nh6 {[%emt 0:00:07]} 21. Rd1 {[%emt 0:02:33]} Bc7 {[%emt 0:01:01]} 22. Ne4 {[%emt 0:06:29]} Nf7 {[%emt 0:01:11]} 23. Nd6+ {[%emt 0:01:01]} Bxd6 {[%emt 0:00:35]} 24. exd6 {[%emt 0:00:12]} Kd7 {[%emt 0:00:20]} 25. Bf4 {[%emt 0:02:33]} Nc6 {[%emt 0:00:12]} 26. Ng5 {[%emt 0:02:33]} Nxg5 {[%emt 0:00:35]} 27. Bxg5 {[%emt 0:00:01]} Rf8 {[%emt 0:01:01]} 28. Be3 {[%emt 0:00:44]} Rf5 {[%emt 0:00:30]} 29. g4 {[%emt 0:01:35]} Rd5 {[%emt 0:01:43]} 30. Rxd5 {[%emt 0:01:11]} exd5 {[%emt 0:00:05]} 31. Bf4 {[%emt 0:00:04]} g6 {[%emt 0:03:21]} 32. Kf1 {[%emt 0:00:24]} Nd8 {[%emt 0:00:17]} 33. Be5 {[%emt 0:01:41]} Nf7 {[%emt 0:00:10]} 34. f4 {[%emt 0:00:09]} Nxd6 {[%emt 0:00:05]} 35. b3 {[%emt 0:01:52]} Ke6 {[%emt 0:00:23]} 36. Ke2 {[%emt 0:00:27]} d4 {[%emt 0:05:41]} 37. b4 {[%emt 0:02:02]} Nc4 {[%emt 0:02:04]} 38. Bg7 {[%emt 0:01:27]} Kd5 {[%emt 0:01:25]} 39. bxc5 {[%emt 0:00:35]} bxc5 {[%emt 0:00:04]} 40. Kd3 {[%emt 0:01:07]} Ne3 {[%emt 0:01:06]} 0-1